bitfinex/quotes_SOLUSD_20260105
["timestamp","ask_amount","ask_price","bid_price","bid_amount"]
[1767575748139,0.70491985,136.46,136.43,8.06268853]
[1767575748540,4.85803918,136.47,136.43,8.06268853]
[1767575748740,4.85803918,136.47,136.43,0.73297661]
[1767575748937,0.70491985,136.46,136.43,0.73297661]
[1767575749140,0.70491985,136.43,136.29,4.85803918]
[1767575749341,5.56295903,136.43,136.38,88.93425454]
[1767575749540,13.36,136.45,136.38,88.93425454]
[1767575749541,0.70491985,136.45,136.39,0.73319158]
[1767575749853,4.85803918,136.46,136.4,7.3309744]
[1767575750050,0.70491985,136.45,136.4,4.85803918]
[1767575750237,0.70491985,136.45,136.4,12.18924949]
[1767575750444,0.70491985,136.44,136.39,8.06510324]
[1767575750637,4.85803918,136.45,136.39,8.06510324]
[1767575750838,0.70491985,136.44,136.39,8.06510324]
[1767575751367,0.70491985,136.44,136.39,12.92314242]
[1767575751658,0.70491985,136.43,136.39,8.06510324]
[1767575751862,0.70491985,136.45,136.4,4.85803918]
[1767575752037,5.56295903,136.45,136.4,7.3313487]
[1767575752358,4.85803918,136.45,136.4,7.3313487]
[1767575752537,0.70491985,136.44,136.4,7.3313487]
[1767575752937,0.70491985,136.47,136.41,5.59112326]
[1767575753139,5.56295903,136.47,136.41,5.59112326]
[1767575753441,5.56295903,136.45,136.4,7.3313487]
[1767575753654,0.70491985,136.44,136.4,7.3313487]
[1767575753960,4.85803918,136.45,136.4,7.3313487]
[1767575754252,0.70491985,136.45,136.4,12.18938788]
[1767575754457,0.70491985,136.45,136.4,7.3313487]
[1767575754757,0.70491985,136.45,136.4,12.18938788]
[1767575755130,0.70491985,136.45,136.4,12.9225257]
[1767575756053,0.70491985,136.46,136.4,12.9225257]
[1767575756557,0.70491985,136.45,136.4,12.9225257]
[1767575756740,4.85803918,136.46,136.4,12.9225257]
[1767575756947,0.70491985,136.44,136.39,12.18978109]
[1767575757248,0.70491985,136.43,136.39,7.33174191]
[1767575757433,0.70491985,136.43,136.38,103.02762967]
[1767575757639,0.70491985,136.46,136.39,7.33184505]
[1767575757852,0.70491985,136.43,136.39,7.33184505]
[1767575758239,0.70491985,136.43,136.39,7.33174504]
[1767575758433,4.85803918,136.44,136.39,7.33174504]
[1767575758638,5.56295903,136.44,136.39,7.33174504]
[1767575758854,0.70491985,136.43,136.39,7.33174504]
[1767575759058,0.70491985,136.44,136.39,12.18978422]
[1767575759247,0.70491985,136.44,136.4,0.73313782]
[1767575760341,20.68714609,136.48,136.39,26.39472619]
[1767575760342,0.70491985,136.48,136.39,26.39472619]
[1767575760547,0.66550225,136.45,136.4,4.85803918]
[1767575760741,0.66550225,136.42,136.4,62.4]
[1767575760932,0.66550225,136.42,136.38,88.9344745]
[1767575761137,0.66550225,136.45,136.38,88.9344745]
[1767575761335,5.52354143,136.45,136.39,5.59123076]
[1767575761548,0.66550225,136.44,136.39,5.59123076]
[1767575761745,0.66550225,136.43,136.38,93.79251368]
[1767575762133,0.66550225,136.43,136.38,94.52575902]
[1767575763059,5.52354143,136.44,136.38,94.52575902]
[1767575763259,0.66550225,136.43,136.38,89.66771984]
[1767575763459,0.66550225,136.42,136.38,89.66771984]
[1767575763660,5.52354143,136.39,136.35,62.4]
[1767575763862,4.85803918,136.36,136.32,7.33533872]
[1767575764062,0.66550225,136.37,136.33,7.33501413]
[1767575764267,0.66550225,136.39,136.34,7.53436503]
[1767575764772,0.66550225,136.39,136.34,12.39240421]
[1767575764939,0.66550225,136.39,136.34,7.53436503]
[1767575765140,0.66550225,136.39,136.34,25.87087669]
[1767575765341,5.52354143,136.39,136.34,7.53436503]
[1767575765649,4.85803918,136.38,136.34,7.53436503]
[1767575765873,0.66550225,136.43,136.35,4.85803918]
[1767575766046,5.52354143,136.41,136.35,5.59144585]
[1767575766248,0.66550225,136.41,136.36,4.85803918]
[1767575766465,0.66550225,136.41,136.35,0.73340667]
[1767575766759,0.66550225,136.41,136.36,4.85803918]
[1767575766968,0.66550225,136.41,136.37,7.33299112]
[1767575767139,0.66550225,136.48,136.4,4.85803918]
[1767575767335,0.66550225,136.47,136.42,4.85803918]
[1767575767560,0.66550225,136.47,136.43,0.73297661]
[1767575767763,0.66550225,136.47,136.42,4.85803918]
[1767575768352,0.66550225,136.47,136.42,12.18818142]
[1767575768551,0.66550225,136.47,136.42,12.92121176]
[1767575768954,0.66550225,136.47,136.42,8.06317258]
[1767575769168,0.66550225,136.47,136.42,12.92121176]
[1767575769342,0.66550225,136.45,136.4,0.73313782]
[1767575769544,0.66550225,136.45,136.41,7.33083024]
[1767575771076,0.66550225,136.45,136.39,18.32899288]
[1767575771077,0.66550225,136.41,136.39,0.73319158]
[1767575771258,5.52354143,136.41,136.38,7.33238386]
[1767575771466,0.66550225,136.4,136.37,7.33294629]
[1767575771975,0.66550225,136.39,136.35,21.42733768]
[1767575772167,0.66550225,136.39,136.35,14.09340667]
[1767575772872,0.66550225,136.39,136.36,7.33345961]
[1767575773366,0.66550225,136.38,136.35,0.73340667]
[1767575773571,4.85803918,136.39,136.34,0.2]
[1767575773572,0.66550225,136.37,136.34,7.53425716]
[1767575773870,5.52354143,136.37,136.34,0.2]
[1767575774474,20.69098931,136.41,136.34,0.2]
[1767575774475,5.52354143,136.36,136.34,0.2]
[1767575774667,0.66550225,136.35,136.31,20.69571057]
[1767575774974,5.52354143,136.34,136.28,1.13378338]
[1767575775148,5.49354142,136.34,136.28,5.99182256]
[1767575775668,5.49354142,136.34,136.28,1.13378338]
[1767575775885,4.85803918,136.34,136.29,7.33715006]
[1767575776050,4.85803918,136.33,136.28,0.2]
[1767575776254,4.85803918,136.32,136.28,0.2]
[1767575776468,4.85803918,136.33,136.28,7.5374336]
[1767575777273,0.66550225,136.3,136.28,0.2]
[1767575777576,0.66550225,136.29,136.25,4.85803918]
[1767575777779,0.66550225,136.28,136.24,14.09399882]
[1767575777987,0.66550225,136.28,136.24,21.433613]
[1767575778154,0.66550225,136.28,136.25,7.3394294]
[1767575778561,0.66550225,136.28,136.24,8.07383737]
[1767575778769,5.52354143,136.28,136.23,29.20469442]
[1767575778964,0.66550225,136.27,136.23,41.40312764]
[1767575779172,0.66550225,136.27,136.23,34.0627336]
[1767575779374,0.66550225,136.28,136.23,36.54515319]
[1767575779690,18.33752637,136.34,136.23,29.20469442]
[1767575779691,0.66550225,136.26,136.23,29.20469442]
[1767575779854,0.66550225,136.26,136.23,36.54504755]
[1767575780386,0.66550225,136.42,136.27,0.43000001]
[1767575780578,3.8189409,136.47,136.27,0.43000001]
[1767575780579,0.66550225,136.38,136.32,0.43000001]
[1767575780875,5.52354143,136.38,136.33,0.73351426]
[1767575781055,0.66550225,136.37,136.32,18.21803918]
[1767575781669,0.66550225,136.37,136.32,25.55369739]
[1767575781977,13.36,136.45,136.28,21.41671891]
[1767575781978,4.85803918,136.34,136.28,0.73378338]
[1767575782159,4.85803918,136.4,136.28,7.33772287]
[1767575782160,0.66550225,136.32,136.28,7.33772287]
[1767575782359,0.66550225,136.32,136.27,13.36]
[1767575782360,0.66550225,136.32,136.27,20.69827883]
[1767575782573,0.66550225,136.32,136.27,25.55631801]
[1767575783173,0.66550225,136.32,136.28,4.85803918]
[1767575783358,0.66550225,136.34,136.29,4.85803918]
[1767575783559,0.66550225,136.34,136.27,21.86211607]
[1767575783560,0.66550225,136.33,136.28,4.85803918]
[1767575785175,0.66550225,136.33,136.29,7.33729547]
[1767575785563,0.66550225,136.32,136.29,7.33729547]
[1767575787367,0.66550225,136.34,136.29,7.33729547]
[1767575787565,0.66550225,136.33,136.29,12.19533465]
[1767575787972,0.66550225,136.33,136.3,4.85803918]
[1767575788168,0.66550225,136.33,136.29,7.33729547]
[1767575788368,0.66550225,136.33,136.29,25.68053415]
[1767575788578,0.66550225,136.34,136.29,25.68053415]
[1767575788810,0.66550225,136.34,136.3,4.85803918]
[1767575789287,0.66550225,136.34,136.3,12.19448473]
[1767575789583,31.68796952,136.41,136.32,5.28803919]
[1767575789584,0.66550225,136.41,136.32,5.28803919]
[1767575789762,0.66550225,136.37,136.31,4.85803918]
[1767575789968,0.66550225,136.35,136.31,4.85803918]
[1767575790169,0.66550225,136.35,136.3,26.28816044]
[1767575790471,0.70692678,136.37,136.31,5.28803919]
[1767575790770,0.70692678,136.37,136.3,21.43012126]
[1767575790771,0.70692678,136.37,136.32,4.85803918]
[1767575790971,0.70692678,136.39,136.36,4.85803918]
[1767575791360,0.70692678,136.39,136.35,12.1917772]
[1767575791563,0.70692678,136.4,136.36,12.19148685]
[1767575791785,166.9,136.5,136.38,5.54567516]
[1767575791966,4.85803918,136.46,136.4,4.85803918]
[1767575792168,4.85803918,136.45,136.39,5.54567516]
[1767575792576,4.85803918,136.45,136.39,4.85803918]
[1767575792983,4.85803918,136.45,136.39,12.18981869]
[1767575793189,4.85803918,136.44,136.39,7.33177951]
[1767575793373,4.85803918,136.42,136.37,0.68763598]
[1767575793573,4.85803918,136.41,136.37,20.69262778]
[1767575793774,5.56496596,136.42,136.37,20.69262778]
[1767575794094,0.70692678,136.41,136.37,20.69262778]
[1767575794486,0.70692678,136.41,136.37,7.33262778]
[1767575794865,5.56496596,136.41,136.37,7.33262778]
[1767575795895,0.70692678,136.41,136.37,12.19066696]
[1767575796071,0.70692678,136.41,136.36,21.42674059]
[1767575796277,0.70692678,136.41,136.36,26.28477977]
[1767575796489,0.66340545,136.4,136.36,20.69338771]
[1767575797678,0.66340545,136.38,136.33,5.59155344]
[1767575797880,0.66340545,136.38,136.34,7.33431754]
[1767575798672,0.66340545,136.4,136.35,0.69762308]
[1767575798875,0.66340545,136.42,136.38,7.90244114]
[1767575799089,0.66340545,136.44,136.39,7.90244114]
[1767575799375,0.66340545,136.42,136.38,7.33245343]
[1767575799578,0.66340545,136.41,136.36,39.59626337]
[1767575799791,0.66340545,136.41,136.37,7.33282668]
[1767575799987,0.66340545,136.43,136.38,8.60006422]
[1767575800384,0.66340545,136.43,136.38,7.90244114]
[1767575800798,0.66340545,136.43,136.37,27.09622668]
[1767575800980,0.66340545,136.43,136.38,7.90244114]
[1767575801393,0.66340545,136.43,136.38,15.23458189]
[1767575801586,0.66340545,136.43,136.38,7.33214075]
[1767575801894,0.66340545,136.43,136.38,15.23458189]
[1767575801895,8.56584659,136.43,136.38,15.23458189]
[1767575802097,0.66340545,136.42,136.37,1.43092219]
[1767575802296,0.66340545,136.41,136.37,7.33292202]
[1767575802492,0.66340545,136.41,136.38,7.33244231]
[1767575802798,0.66340545,136.43,136.38,15.23488345]
[1767575803118,0.66340545,136.41,136.37,7.33286353]
[1767575803407,0.66340545,136.43,136.39,7.90244114]
[1767575803780,8.56584659,136.43,136.38,15.23472944]
[1767575804000,0.66340545,136.42,136.38,15.23472944]
[1767575804202,0.66340545,136.46,136.39,15.23428792]
[1767575804497,0.66340545,136.42,136.38,15.2347575]
[1767575804695,7.90244114,136.43,136.39,0.69762308]
[1767575804900,0.66340545,136.42,136.38,15.2347575]
[1767575805608,7.90244114,136.42,136.38,0.69762308]
[1767575805788,8.56584659,136.43,136.38,8.60006422]
[1767575806199,0.66340545,136.42,136.37,62.4]
[1767575806391,7.90244114,136.43,136.38,8.60006422]
[1767575806595,8.56584659,136.43,136.38,8.60006422]
[1767575806904,0.66340545,136.42,136.38,15.23485558]
[1767575807407,7.32831208,136.46,136.38,7.33241444]
[1767575807408,8.56584659,136.43,136.38,7.33241444]
[1767575807704,8.56584659,136.39,136.33,9.33357848]
[1767575807903,8.56584659,136.37,136.33,7.33503414]
[1767575808107,7.90244114,136.37,136.33,8.03265722]
[1767575808306,7.90244114,136.37,136.34,0.69762308]
[1767575808610,0.66340545,136.37,136.33,7.33503414]
[1767575808981,0.66340545,136.39,136.33,8.03265722]
[1767575809185,0.66340545,136.37,136.33,7.33503414]
[1767575809613,0.66340545,136.42,136.35,8.60006422]
[1767575809794,0.66340545,136.4,136.35,8.60006422]
[1767575809996,0.66340545,136.4,136.35,21.26244114]
[1767575810609,7.90244114,136.41,136.37,0.69762308]
[1767575810788,0.66340545,136.4,136.36,7.33318511]
[1767575811406,8.56584659,136.39,136.35,13.36]
[1767575812210,0.66340545,136.43,136.35,21.39162641]
[1767575812408,0.66340545,136.42,136.36,0.69762308]
[1767575812611,0.66340545,136.4,136.36,7.90244114]
[1767575812815,0.66340545,136.4,136.37,7.33296708]
[1767575813123,7.32879967,136.45,136.37,7.33296708]
[1767575813124,8.56584659,136.42,136.37,7.33296708]
[1767575813309,0.66340545,136.43,136.38,21.26244114]
[1767575813510,7.32776055,136.47,136.38,21.26244114]
[1767575813511,8.56584659,136.42,136.38,13.36]
[1767575813817,0.66340545,136.41,136.38,13.36]
[1767575814898,7.90244114,136.42,136.38,13.36]
[1767575815097,8.56584659,136.41,136.38,13.36]
[1767575815489,0.66340545,136.4,136.38,13.36]
[1767575815695,7.90244114,136.41,136.38,13.36]
[1767575816009,0.66340545,136.4,136.38,13.36]
[1767575816620,7.90244114,136.4,136.36,0.69762308]
[1767575816820,8.56584659,136.4,136.35,28.59644103]
[1767575817518,0.66340545,136.39,136.35,28.59644103]
[1767575818012,0.66340545,136.39,136.35,20.69399989]
[1767575818208,0.66340545,136.39,136.35,13.36]
[1767575818209,8.56584659,136.39,136.35,13.36]
[1767575818415,0.66340545,136.37,136.35,13.36]
[1767575818606,0.66340545,136.37,136.34,7.33442591]
[1767575818925,0.66340545,136.37,136.33,20.69514161]
[1767575819914,7.90244114,136.38,136.33,21.39276469]
[1767575820215,0.66340545,136.42,136.35,7.90244114]
[1767575820422,0.69285495,136.38,136.33,28.59758275]
[1767575820623,8.59529609,136.38,136.33,28.59758275]
[1767575820922,0.69285495,136.35,136.31,7.33611284]
[1767575821217,8.56529608,136.35,136.3,21.37001419]
[1767575821396,129.45418163,136.43,136.27,18.34547265]
[1767575821397,7.90244114,136.32,136.27,18.34547265]
[1767575821598,13.36,136.39,136.26,21.93579687]
[1767575821818,4.90128375,136.38,136.27,0.67335573]
[1767575822117,7.90244114,136.33,136.28,0.67335573]
[1767575822322,7.90244114,136.34,136.28,8.57579687]
[1767575822523,7.90244114,136.33,136.28,0.67335573]
[1767575822817,7.90244114,136.32,136.27,7.33828665]
[1767575823215,7.90244114,136.31,136.27,7.33828665]
[1767575823625,7.90244114,136.31,136.26,21.37217197]
[1767575823806,8.59529609,136.29,136.24,8.01293732]
[1767575824323,8.59529609,136.28,136.23,57.8074866]
[1767575824729,8.59529609,136.3,136.24,15.91561759]
[1767575824908,8.59529609,136.3,136.25,8.57579687]
[1767575825329,0.69285495,136.3,136.26,7.90244114]
[1767575826223,0.69285495,136.32,136.28,7.90244114]
[1767575827511,0.69285495,136.32,136.27,7.90244114]
[1767575827831,8.59529609,136.31,136.26,21.26244114]
[1767575828005,0.69285495,136.31,136.27,7.90244114]
[1767575828214,8.59529609,136.33,136.28,7.90244114]
[1767575828416,0.69285495,136.33,136.28,7.90244114]
[1767575828737,0.69285495,136.31,136.27,7.90244114]
[1767575829734,0.69285495,136.31,136.26,14.03335573]
[1767575829936,0.69285495,136.31,136.26,13.36]
[1767575830228,0.69285495,136.28,136.24,7.90244114]
[1767575830811,8.59529609,136.28,136.23,42.56469442]
[1767575831131,7.33613742,136.32,136.24,8.57579687]
[1767575831329,8.59529609,136.29,136.24,8.57579687]
[1767575831920,8.59529609,136.29,136.24,15.91577455]
[1767575832431,0.69285495,136.29,136.24,15.91577455]
[1767575832628,8.59529609,136.29,136.24,15.91577455]
[1767575833132,0.69285495,136.27,136.23,42.56469442]
[1767575834424,0.69285495,136.26,136.23,29.20469442]
[1767575834623,18.33922205,136.32,136.22,15.443161]
[1767575834624,8.59529609,136.24,136.22,0.2]
[1767575835239,8.59529609,136.23,136.18,8.01642097]
[1767575835532,7.90244114,136.24,136.2,0.67335573]
[1767575836120,7.90244114,136.25,136.2,0.67335573]
[1767575836307,0.69285495,136.28,136.23,8.57579687]
[1767575836512,0.69285495,136.33,136.26,0.67335573]
[1767575836715,8.59529609,136.3,136.24,15.91540365]
[1767575837011,8.59529609,136.3,136.25,8.57579687]
[1767575837217,8.59529609,136.3,136.25,0.67335573]
[1767575837418,0.69285495,136.3,136.25,0.67335573]
[1767575837717,8.59529609,136.3,136.25,8.57579687]
[1767575838113,0.69285495,136.3,136.26,8.57579687]
[1767575838337,0.69285495,136.31,136.26,8.57579687]
[1767575838855,0.69285495,136.31,136.26,15.91469383]
[1767575839014,0.69285495,136.31,136.27,7.90244114]
[1767575839835,0.69285495,136.33,136.3,7.90244114]
[1767575841120,7.90244114,136.36,136.3,15.23903384]
[1767575841336,0.69285495,136.35,136.3,15.23903384]
[1767575841634,0.69285495,136.35,136.29,14.03335573]
[1767575841635,0.69285495,136.34,136.29,21.37046898]
[1767575841844,0.69285495,136.33,136.29,13.36]
[1767575842625,0.69285495,136.32,136.29,13.36]
[1767575842824,0.69285495,136.31,136.26,13.36]
[1767575843026,0.69285495,136.31,136.26,20.69851328]
[1767575843226,0.69285495,136.3,136.26,20.69851328]
[1767575843437,0.69285495,136.3,136.26,28.60095442]
[1767575843741,0.69285495,136.34,136.29,7.90244114]
[1767575844124,0.69285495,136.33,136.29,7.90244114]
[1767575844323,7.90244114,136.36,136.3,7.90244114]
[1767575844529,0.69285495,136.35,136.3,0.67335573]
[1767575844722,0.69285495,136.35,136.31,7.90244114]
[1767575844928,0.69285495,136.35,136.3,7.90244114]
[1767575845115,0.69285495,136.35,136.3,15.23919532]
[1767575845523,0.69285495,136.35,136.31,7.90244114]
[1767575845846,0.69285495,136.35,136.3,7.33675418]
[1767575846046,0.69285495,136.35,136.31,7.90244114]
[1767575846754,0.69285495,136.35,136.3,15.23914912]
[1767575847149,0.69285495,136.35,136.29,21.37045652]
[1767575847451,0.69285495,136.35,136.3,7.90244114]
[1767575847650,8.59529609,136.35,136.3,7.90244114]
[1767575847951,0.69285495,136.32,136.28,20.69764973]
[1767575848151,0.69285495,136.32,136.28,13.36]
[1767575848333,0.69285495,136.31,136.28,13.36]
[1767575848881,7.90244114,136.32,136.28,14.03335573]
[1767575849050,0.69285495,136.32,136.28,14.03335573]
[1767575849352,7.90244114,136.32,136.28,14.03335573]
[1767575849650,8.59529609,136.31,136.28,13.36]
[1767575849836,7.90244114,136.29,136.26,0.67335573]
[1767575850152,0.69285495,136.26,136.2,0.67335573]
[1767575850355,0.72129652,136.23,136.18,7.34287857]
[1767575850546,7.90244114,136.24,136.19,0.68719758]
[1767575850854,7.90244114,136.23,136.19,0.68719758]
[1767575851155,8.62373766,136.23,136.18,21.26244114]
[1767575851337,0.72129652,136.22,136.18,21.26244114]
[1767575851544,0.72129652,136.22,136.18,20.70306743]
[1767575851934,0.72129652,136.25,136.2,8.58963872]
[1767575852252,0.72129652,136.25,136.2,0.68719758]
[1767575852561,8.62373766,136.24,136.18,29.29270615]
[1767575852732,8.62373766,136.24,136.19,0.68719758]
[1767575852931,8.62373766,136.24,136.19,8.58963872]
[1767575853233,0.72129652,136.28,136.22,0.68719758]
[1767575853450,7.90244114,136.25,136.22,0.68719758]
[1767575854552,0.72129652,136.27,136.22,0.68719758]
[1767575854754,7.90244114,136.25,136.22,0.68719758]
[1767575855758,7.90244114,136.23,136.2,0.68072296]
[1767575856056,7.90244114,136.25,136.21,0.68072296]
[1767575856640,7.90244114,136.22,136.19,0.68072296]
[1767575857549,0.6717326,136.24,136.19,0.68072296]
[1767575857851,7.90244114,136.22,136.19,0.68072296]
[1767575858047,103.8,136.3,136.22,0.68072296]
[1767575858048,7.90244114,136.27,136.22,0.68072296]
[1767575858255,7.90244114,136.27,136.23,0.68072296]
[1767575858650,7.90244114,136.29,136.24,0.68072296]
[1767575858850,8.57417374,136.27,136.22,14.06072296]
[1767575859028,7.90244114,136.28,136.23,0.68072296]
[1767575859336,0.28671192,136.27,136.22,21.28244114]
[1767575859531,0.6717326,136.26,136.22,13.38]
[1767575860051,0.6717326,136.26,136.22,28.62334996]
[1767575860254,8.57417374,136.28,136.22,29.30407292]
[1767575860461,0.6717326,136.26,136.22,28.62334996]
[1767575860661,0.6717326,136.26,136.22,20.72090882]
[1767575860959,5.54518018,136.26,136.22,13.38]
[1767575861158,0.6717326,136.26,136.22,13.38]
[1767575861865,0.6717326,136.26,136.22,20.72096886]
[1767575862262,0.6717326,136.26,136.22,13.38]
[1767575862561,5.54518018,136.26,136.22,13.38]
[1767575863345,4.87344758,136.26,136.22,14.06072296]
[1767575863552,4.87344758,136.26,136.22,13.38]
[1767575863762,5.54518018,136.27,136.22,20.72103317]
[1767575864062,4.87344758,136.27,136.23,0.68072296]
[1767575864439,0.6717326,136.26,136.22,25.59448075]
[1767575864637,0.6717326,136.26,136.22,20.72103317]
[1767575864857,0.6717326,136.25,136.22,13.38]
[1767575865061,5.54518018,136.26,136.22,13.38]
[1767575865234,4.87344758,136.25,136.22,13.38]
[1767575865433,4.87344758,136.23,136.18,8.02374812]
[1767575865646,5.54518018,136.24,136.19,7.3426378]
[1767575865846,5.54518018,136.26,136.21,0.68072296]
[1767575866048,5.54518018,136.24,136.19,21.40336076]
[1767575866347,0.6717326,136.24,136.2,4.87344758]
[1767575866557,0.6717326,136.24,136.19,21.40336076]
[1767575866866,5.54518018,136.24,136.19,26.27680834]
[1767575867064,0.6717326,136.24,136.19,26.27680834]
[1767575867269,0.6717326,136.24,136.2,4.87344758]
[1767575867463,0.6717326,136.24,136.19,26.27680834]
[1767575868071,0.6717326,136.24,136.19,21.40336076]
[1767575868367,0.6717326,136.24,136.2,5.55417054]
[1767575868660,7.3379469,136.28,136.23,0.68072296]
[1767575868661,0.6717326,136.28,136.23,0.68072296]
[1767575868840,5.54518018,136.28,136.23,5.46659373]
[1767575869037,0.6717326,136.27,136.22,18.25344758]
[1767575869241,0.6717326,136.35,136.24,4.87344758]
[1767575869463,0.6717326,136.3,136.24,4.87344758]
[1767575869666,5.54518018,136.3,136.24,4.81344767]
[1767575869843,0.6717326,136.35,136.26,4.87344758]
[1767575870050,5.54518018,136.33,136.27,4.87344758]
[1767575870252,0.6717326,136.33,136.25,13.38]
[1767575870549,5.54518018,136.33,136.27,4.87344758]
[1767575870748,5.54518018,136.32,136.27,4.87344758]
[1767575870958,5.54518018,136.32,136.26,5.55417054]
[1767575871157,5.54518018,136.32,136.26,0.68072296]
[1767575871478,5.54518018,136.3,136.25,0.68072296]
[1767575871769,0.6717326,136.32,136.27,4.87344758]
[1767575872274,5.54518018,136.32,136.27,4.87344758]
[1767575872983,0.6717326,136.34,136.29,5.55417054]
[1767575873676,0.6717326,136.35,136.3,5.55417054]
[1767575873974,0.6717326,136.35,136.3,0.68072296]
[1767575874280,0.6717326,136.35,136.3,4.87344758]
[1767575874452,5.54518018,136.35,136.29,8.01801843]
[1767575874652,0.6717326,136.34,136.3,4.87344758]
[1767575874873,0.6717326,136.36,136.32,4.87344758]
[1767575875075,5.54518018,136.36,136.31,5.55417054]
[1767575875574,0.6717326,136.36,136.31,5.55417054]
[1767575875971,5.54518018,136.36,136.31,0.68072296]
[1767575876156,0.6717326,136.36,136.31,0.68072296]
[1767575876357,0.6717326,136.36,136.31,5.55417054]
[1767575876675,0.6717326,136.37,136.32,5.55417054]
[1767575877068,0.6717326,136.36,136.32,0.68072296]
[1767575877966,4.87344758,136.37,136.32,0.68072296]
[1767575878366,0.6717326,136.35,136.31,7.33586081]
[1767575878956,4.87344758,136.36,136.32,0.68072296]
[1767575879277,0.6717326,136.37,136.32,0.68072296]
[1767575879278,5.54518018,136.37,136.32,0.68072296]
[1767575879455,0.6717326,136.36,136.31,12.20930839]
[1767575879656,0.6717326,136.36,136.31,12.89003135]
[1767575879882,5.54518018,136.36,136.31,12.89003135]
[1767575880185,4.87344758,136.37,136.32,5.55417054]
[1767575880389,4.87344758,136.36,136.32,0.68072296]
[1767575880562,5.5881724,136.36,136.31,12.20930839]
[1767575880759,5.5881724,136.36,136.31,12.8939644]
[1767575881397,0.71472482,136.38,136.32,0.68465601]
[1767575881989,5.5881724,136.37,136.33,0.68465601]
[1767575882155,5.5881724,136.37,136.32,4.87344758]
[1767575882564,4.87344758,136.37,136.33,0.68465601]
[1767575882969,0.71472482,136.37,136.33,4.87344758]
[1767575883170,0.71472482,136.36,136.32,0.68465601]
[1767575883395,5.5881724,136.36,136.31,4.87344758]
[1767575883584,4.87344758,136.35,136.31,0.68465601]
[1767575884069,5.5881724,136.35,136.3,6.2917793]
[1767575884567,4.87344758,136.35,136.31,0.68465601]
[1767575884813,4.87344758,136.35,136.3,0.73367571]
[1767575884814,5.5881724,136.35,136.3,0.73367571]
[1767575884970,0.71472482,136.32,136.28,8.07147989]
[1767575885172,0.71472482,136.32,136.28,7.33769651]
[1767575885403,5.5881724,136.32,136.28,7.33769651]
[1767575885803,7.3337257,136.36,136.29,0.68465601]
[1767575885804,4.87344758,136.33,136.29,0.68465601]
[1767575885980,4.87344758,136.31,136.27,20.71822264]
[1767575886371,5.5881724,136.32,136.27,25.59167022]
[1767575886571,5.5881724,136.32,136.27,20.71822264]
[1767575886791,5.5881724,136.32,136.27,26.27632623]
[1767575886792,0.71472482,136.32,136.27,26.27632623]
[1767575887074,0.71472482,136.34,136.29,0.68465601]
[1767575887294,4.87344758,136.33,136.29,0.68465601]
[1767575887499,0.28828836,136.32,136.28,12.89592822]
[1767575888098,4.87344758,136.33,136.29,0.68465601]
[1767575888485,5.5881724,136.32,136.27,18.25344758]
[1767575888669,0.71472482,136.31,136.27,13.38]
[1767575888868,5.5881724,136.31,136.27,13.38]
[1767575889098,0.71472482,136.3,136.26,8.02336776]
[1767575889396,4.87344758,136.31,136.27,0.68465601]
[1767575889889,5.5881724,136.31,136.26,8.02336776]
[1767575890270,4.87344758,136.31,136.26,0.68465601]
[1767575890464,0.71472482,136.32,136.26,0.68465601]
[1767575890693,0.71472482,136.3,136.26,0.68465601]
[1767575890875,5.5881724,136.31,136.26,12.89688845]
[1767575891076,5.5881724,136.31,136.26,0.68465601]
[1767575891591,5.5881724,136.31,136.27,0.68465601]
[1767575891766,0.71472482,136.3,136.25,12.89740779]
[1767575892087,0.71472482,136.3,136.26,7.33886776]
[1767575892279,0.71472482,136.3,136.26,12.89697135]
[1767575892479,4.87344758,136.31,136.26,0.68465601]
[1767575892693,0.71472482,136.32,136.27,0.68465601]
[1767575892888,0.71472482,136.32,136.27,5.55810359]
[1767575893275,5.5881724,136.3,136.25,12.8975014]
[1767575893477,4.87344758,136.3,136.26,0.68465601]
[1767575893987,0.71472482,136.29,136.25,4.87344758]
[1767575894178,0.71472482,136.29,136.25,5.55810359]
[1767575894583,4.87344758,136.3,136.26,0.68465601]
[1767575894776,0.71472482,136.28,136.23,0.68465601]
[1767575894975,0.71472482,136.3,136.24,8.75844435]
[1767575895180,0.71472482,136.27,136.22,14.04465601]
[1767575895399,5.5881724,136.27,136.22,26.25866384]
[1767575895573,4.87344758,136.27,136.23,0.68465601]
[1767575895879,4.87344758,136.25,136.21,0.68465601]
[1767575896080,5.5881724,136.25,136.21,0.68465601]
[1767575896290,0.71472482,136.25,136.21,5.55810359]
[1767575896497,21.71013837,136.34,136.23,0.68465601]
[1767575896498,4.87344758,136.27,136.23,0.68465601]
[1767575896797,4.87344758,136.24,136.22,0.68465601]
[1767575897189,5.5881724,136.24,136.19,18.23344758]
[1767575897486,5.5881724,136.24,136.19,14.04465601]
[1767575897688,4.87344758,136.23,136.19,14.04465601]
[1767575897896,4.87344758,136.23,136.2,0.68465601]
[1767575898195,4.87344758,136.24,136.2,0.68465601]
[1767575898574,5.5881724,136.24,136.19,26.26072116]
[1767575898974,5.5881724,136.24,136.19,21.38727358]
[1767575899196,4.87344758,136.22,136.19,13.36]